{"text_format":"1","workbook":"xlsx","n_sheets":8,"sheets":["home","PrimaNota","PrimaNota2","Anagrafica","Liste","esempi","informazioni","Foglio1"],"not_rendered":{"charts":0,"images":0,"macros":1,"external_links":0,"defined_names":7,"comments":2,"pivot_tables":0},"unopened":[],"bounds":{"document_bytes":16777216,"sheet_cells":100000,"rows_first":2000,"rows_last":500,"rows_between":2000,"halvings":0,"cell_chars":16384,"cell_head_chars":4096},"cells_cut":0,"cells_raw":0,"read":"whole","date_system":"1900"}

{"sheet":"home","index":0,"n_rows":1,"n_cols":1,"rows_kept":1,"cut":false,"hidden":false,"merged":[]}
[{"$f":"Foglio1!B3","v":"Prima nota in formato excel by www.programmiaccess.com "}]

{"sheet":"PrimaNota","index":1,"n_rows":24,"n_cols":14,"rows_kept":24,"cut":false,"hidden":false,"merged":[[1,0,1,9]]}
[{"$f":"Foglio1!B3","v":"Prima nota in formato excel by www.programmiaccess.com "}]
[]
[null,null,null,null,null,null,null,null,null,null,null,null,null,{"$f":"SUM($H3:L$6)-SUM($I3:M$6)","v":1000}]
[null,null,null,null,"Cassa",null,null,"Banca 1",null,null,null,null,null,{"$f":"SUM($E4:L$6)-SUM($F4:M$6)","v":100}]
["Data operazione","Causale","Cliente","Fornitore","Entrate","Uscite","Saldo","Entrate","Uscite","Saldo"]
["2011-01-01","Saldo iniziale",null,null,100,null,{"$f":"SUM($E$6:E6)-SUM($F$6:F6)","v":100},1000,null,{"$f":"SUM($H$6:H6)-SUM($I$6:I6)","v":1000}]
[null,null,null,null,null,null,{"$f":"SUM($E$6:E7)-SUM($F$6:F7)","v":100},null,null,{"$f":"SUM($H$6:H7)-SUM($I$6:I7)","v":1000}]
[null,null,null,null,null,null,{"$f":"SUM($E$6:E8)-SUM($F$6:F8)","v":100},null,null,{"$f":"SUM($H$6:H8)-SUM($I$6:I8)","v":1000}]
[null,null,null,null,null,null,{"$f":"SUM($E$6:E9)-SUM($F$6:F9)","v":100},null,null,{"$f":"SUM($H$6:H9)-SUM($I$6:I9)","v":1000}]
[null,null,null,null,null,null,{"$f":"SUM($E$6:E10)-SUM($F$6:F10)","v":100},null,null,{"$f":"SUM($H$6:H10)-SUM($I$6:I10)","v":1000}]
[null,null,null,null,null,null,{"$f":"SUM($E$6:E11)-SUM($F$6:F11)","v":100},null,null,{"$f":"SUM($H$6:H11)-SUM($I$6:I11)","v":1000}]
[null,null,null,null,null,null,{"$f":"SUM($E$6:E12)-SUM($F$6:F12)","v":100},null,null,{"$f":"SUM($H$6:H12)-SUM($I$6:I12)","v":1000}]
[null,null,null,null,null,null,{"$f":"SUM($E$6:E13)-SUM($F$6:F13)","v":100},null,null,{"$f":"SUM($H$6:H13)-SUM($I$6:I13)","v":1000}]
[null,null,null,null,null,null,{"$f":"SUM($E$6:E14)-SUM($F$6:F14)","v":100},null,null,{"$f":"SUM($H$6:H14)-SUM($I$6:I14)","v":1000}]
[null,null,null,null,null,null,{"$f":"SUM($E$6:E15)-SUM($F$6:F15)","v":100},null,null,{"$f":"SUM($H$6:H15)-SUM($I$6:I15)","v":1000}]
[null,null,null,null,null,null,{"$f":"SUM($E$6:E16)-SUM($F$6:F16)","v":100},null,null,{"$f":"SUM($H$6:H16)-SUM($I$6:I16)","v":1000}]
[null,null,null,null,null,null,{"$f":"SUM($E$6:E17)-SUM($F$6:F17)","v":100},null,null,{"$f":"SUM($H$6:H17)-SUM($I$6:I17)","v":1000}]
[null,null,null,null,null,null,{"$f":"SUM($E$6:E18)-SUM($F$6:F18)","v":100},null,null,{"$f":"SUM($H$6:H18)-SUM($I$6:I18)","v":1000}]
[null,null,null,null,null,null,{"$f":"SUM($E$6:E19)-SUM($F$6:F19)","v":100},null,null,{"$f":"SUM($H$6:H19)-SUM($I$6:I19)","v":1000}]
["Saldi finali",null,null,null,null,null,{"$f":"SUM($E$6:E20)-SUM($F$6:F20)","v":100},null,null,{"$f":"SUM($H$6:H20)-SUM($I$6:I20)","v":1000}]
["Totali",null,null,null,{"$f":"SUM(E6:E20)","v":100},{"$f":"SUM(F6:F20)","v":0},{"$f":"+E21-F21","v":100},{"$f":"SUM(H6:H20)","v":1000},{"$f":"SUM(I6:I20)","v":0},{"$f":"+H21-I21","v":1000}]
["Premere il pulsante al lato \"Inserisci …\" quando non ci sono altre righe disponibili"]
[]
["www.programmiaccess.com"]

{"sheet":"PrimaNota2","index":2,"n_rows":18,"n_cols":14,"rows_kept":18,"cut":false,"hidden":false,"merged":[[1,0,1,9]]}
[{"$f":"Foglio1!B3","v":"Prima nota in formato excel by www.programmiaccess.com "}]
[]
[null,null,null,null,null,null,null,null,null,null,null,null,null,{"$f":"SUM($H3:L$6)-SUM($I3:M$6)","v":0}]
[null,null,null,null,"Banca 2",null,null,"Banca 3",null,null,null,null,null,{"$f":"SUM($E4:L$6)-SUM($F4:M$6)","v":100}]
["Data operazione","Causale","Cliente","Fornitore","Entrate","Uscite","Saldo","Entrate","Uscite","Saldo"]
["2011-01-01","Saldo iniziale","Fornitore Snc",null,100,null,{"$f":"SUM($E$6:E6)-SUM($F$6:F6)","v":100},0,null,{"$f":"SUM($H$6:H6)-SUM($I$6:I6)","v":0}]
[null,null,null,null,null,null,{"$f":"SUM($E$6:E7)-SUM($F$6:F7)","v":100},null,null,{"$f":"SUM($H$6:H7)-SUM($I$6:I7)","v":0}]
[null,null,null,null,null,null,{"$f":"SUM($E$6:E8)-SUM($F$6:F8)","v":100},null,null,{"$f":"SUM($H$6:H8)-SUM($I$6:I8)","v":0}]
[null,null,null,null,null,null,{"$f":"SUM($E$6:E9)-SUM($F$6:F9)","v":100},null,null,{"$f":"SUM($H$6:H9)-SUM($I$6:I9)","v":0}]
[null,null,null,null,null,null,{"$f":"SUM($E$6:E10)-SUM($F$6:F10)","v":100},null,null,{"$f":"SUM($H$6:H10)-SUM($I$6:I10)","v":0}]
[null,null,null,null,null,null,{"$f":"SUM($E$6:E11)-SUM($F$6:F11)","v":100},null,null,{"$f":"SUM($H$6:H11)-SUM($I$6:I11)","v":0}]
[null,null,null,null,null,null,{"$f":"SUM($E$6:E12)-SUM($F$6:F12)","v":100},null,null,{"$f":"SUM($H$6:H12)-SUM($I$6:I12)","v":0}]
[null,null,null,null,null,null,{"$f":"SUM($E$6:E13)-SUM($F$6:F13)","v":100},null,null,{"$f":"SUM($H$6:H13)-SUM($I$6:I13)","v":0}]
[null,null,null,null,null,null,{"$f":"SUM($E$6:E14)-SUM($F$6:F14)","v":100},null,null,{"$f":"SUM($H$6:H14)-SUM($I$6:I14)","v":0}]
["Saldi finali",null,null,null,null,null,{"$f":"SUM($E$6:E15)-SUM($F$6:F15)","v":100},null,null,{"$f":"SUM($H$6:H15)-SUM($I$6:I15)","v":0}]
["Totali",null,null,null,{"$f":"SUM(E6:E15)","v":100},{"$f":"SUM(F6:F15)","v":0},{"$f":"+E16-F16","v":100},{"$f":"SUM(H6:H15)","v":0},{"$f":"SUM(I6:I15)","v":0},{"$f":"+H16-I16","v":0}]
["Premere il pulsante al lato \"Inserisci …\" quando non ci sono altre righe disponibili"]
["www.programmiaccess.com"]

{"sheet":"Anagrafica","index":3,"n_rows":3,"n_cols":5,"rows_kept":3,"cut":false,"hidden":false,"merged":[]}
["Elenco Anagrafica"]
["Nome/Denominazione","Indirizzo","Cap Città Provincia","Codice Fiscale","Partita Iva"]
["Fornitore Snc","Corso Italia n.12","80100 Napoli (Na)"]

{"sheet":"Liste","index":4,"n_rows":7,"n_cols":1,"rows_kept":7,"cut":false,"hidden":false,"merged":[]}
["CAUSALI"]
["Incasso da cliente fatt. n."]
["Pagamento Fattura n.      Del"]
["Saldo iniziale"]
["Ricevuto Acconto da cliente:"]
["Pagato fitto"]
["Imposte e tasse"]

{"sheet":"esempi","index":5,"n_rows":14,"n_cols":12,"rows_kept":14,"cut":false,"hidden":false,"merged":[[1,0,1,7]]}
[{"$f":"Foglio1!B3","v":"Prima nota in formato excel by www.programmiaccess.com "}]
["www.programmiaccess.com"]
[]
[null,null,"Cassa",null,null,"Banca",null,null,null,null,null,{"$f":"+L3+J4-K4","v":0}]
["Data operazione","Causale","Entrate","Uscite","Saldo","Entrate","Uscite","Saldo"]
["2011-01-01","Saldo iniziale",100,null,{"$f":"+C6-D6","v":100},100,null,{"$f":"+F6-G6","v":100}]
["2011-01-02","Pagato fitto",null,null,{"$f":"+E6+C7-D7","v":100},null,1200,{"$f":"+H6+F7-G7","v":-1100}]
["2011-01-03","Incasso fatt. n. 15 del 12/11/2010",null,null,100,6000,null,4900]
["2011-01-04","Invio raccomandata",null,5.5,94.5,null,null,4900]
[null,null,null,null,94.5,null,null,4900]
[null,null,null,null,94.5,null,null,4900]
[null,null,null,null,94.5,null,null,4900]
["@#fine"]
["Totali",null,{"$f":"SUM(C6:C13)","v":100},{"$f":"SUM(D6:D13)","v":5.5},{"$f":"C14-D14","v":94.5},{"$f":"SUM(F6:F13)","v":6100},{"$f":"SUM(G6:G13)","v":1200},{"$f":"F14-G14","v":4900}]

{"sheet":"informazioni","index":6,"n_rows":12,"n_cols":3,"rows_kept":12,"cut":false,"hidden":false,"merged":[]}
["0) Attiva le Macro, non necessario ma utile per alcune operazioni"]
["1) Compilare la scheda Informazioni"]
["2) Vedere l'esempio nella scheda \"esempio\""]
["3) Se ci sono causali ricorrenti inserirle nella scheda Liste"]
["4) Compilare la scheda PrimaNota e inviarla entro il 5 del mese successivo allo studio con gli altri documenti contabili"]
["5) Non fare modifiche radicali al foglio (spostare, cancellare celle) per evitare che le formule non funzionino più"]
["6) Se si hanno più banche si può usare il foglio Primanota2"]
[]
[]
[]
[]
[null,null,"www.programmiaccess.com"]

{"sheet":"Foglio1","index":7,"n_rows":3,"n_cols":2,"rows_kept":3,"cut":false,"hidden":false,"merged":[]}
[]
[]
[null,"Prima nota in formato excel by www.programmiaccess.com "]